Workbook

Sheet tsp225
A1: Исходные данные | C1: кол-во | D1: =COUNT(D3:D286) -> 82 | G1: Путь коммивояжера
A2: № | B2: Наименование | C2: X | D2: Y | G2: № | H2: Наименование | I2: X | J2: Y | L2: Длина
A3: 1 | B3: Точка 1 | C3: 427 | D3: 3835 | G3: 1 | H3: =IF($G3<>"",INDEX(B$3:B$227,$G3),NA()) -> Точка 1 | I3: =IF($G3<>"",INDEX(C$3:C$227,$G3),NA()) -> 427 | J3: =IF($G3<>"",INDEX(D$3:D$227,$G3),NA()) -> 3835 | L3: =IF(AND(ISNUMBER(I3:J4)),ROUND(SQRT((I3-I4)^2+(J3-J4)^2),),"") -> 61
A4: 2 | B4: Точка 2 | C4: 550 | D4: 5025 | G4: 24 | H4: Точка 24 | I4: 366 | J4: 3833 | L4: =IF(AND(ISNUMBER(I4:J5)),ROUND(SQRT((I4-I5)^2+(J4-J5)^2),),"") -> 72
A5: 3 | B5: Точка 3 | C5: 297 | D5: 3624 | G5: 28 | H5: Точка 28 | I5: 352 | J5: 3762 | L5: =IF(AND(ISNUMBER(I5:J6)),ROUND(SQRT((I5-I6)^2+(J5-J6)^2),),"") -> 92
A6: 4 | B6: Точка 4 | C6: 540 | D6: 4199 | G6: 38 | H6: Точка 38 | I6: 439 | J6: 3733 | L6: =IF(AND(ISNUMBER(I6:J7)),ROUND(SQRT((I6-I7)^2+(J6-J7)^2),),"") -> 83
A7: 5 | B7: Точка 5 | C7: 802 | D7: 10148 | G7: 67 | H7: Точка 67 | I7: 408 | J7: 3656 | L7: =IF(AND(ISNUMBER(I7:J8)),ROUND(SQRT((I7-I8)^2+(J7-J8)^2),),"") -> 116
A8: 6 | B8: Точка 6 | C8: 825 | D8: 10271 | G8: 3 | H8: Точка 3 | I8: 297 | J8: 3624 | L8: =IF(AND(ISNUMBER(I8:J9)),ROUND(SQRT((I8-I9)^2+(J8-J9)^2),),"") -> 335 | N8: 4 | O8: m
A9: 7 | B9: Точка 7 | C9: 107 | D9: 8191 | G9: 21 | H9: Точка 21 | I9: 166 | J9: 3316 | L9: =IF(AND(ISNUMBER(I9:J10)),ROUND(SQRT((I9-I10)^2+(J9-J10)^2),),"") -> 3317 | N9: 20 | O9: q
A10: 8 | B10: Точка 8 | C10: 752 | D10: 8645 | G10: 68 | H10: Точка 68 | I10: 72 | J10: 0 | L10: =IF(AND(ISNUMBER(I10:J11)),ROUND(SQRT((I10-I11)^2+(J10-J11)^2),),"") -> 3110 | N10: TRUE
A11: 9 | B11: Точка 9 | C11: 852 | D11: 7917 | G11: 33 | H11: Точка 33 | I11: 64 | J11: 3110 | L11: =IF(AND(ISNUMBER(I11:J12)),ROUND(SQRT((I11-I12)^2+(J11-J12)^2),),"") -> 110 | N11: Длина: | O11: =L228 -> 22777
A12: 10 | B12: Точка 10 | C12: 852 | D12: 8034 | G12: 32 | H12: Точка 32 | I12: 80 | J12: 3219 | L12: =IF(AND(ISNUMBER(I12:J13)),ROUND(SQRT((I12-I13)^2+(J12-J13)^2),),"") -> 0 | N12: Время: | O12: 3.5859375
A13: 11 | B13: Точка 11 | C13: 26 | D13: 3327 | G13: 55 | H13: Точка 55 | I13: 80 | J13: 3219 | L13: =IF(AND(ISNUMBER(I13:J14)),ROUND(SQRT((I13-I14)^2+(J13-J14)^2),),"") -> 121
A14: 12 | B14: Точка 12 | C14: 598 | D14: 3954 | G14: 11 | H14: Точка 11 | I14: 26 | J14: 3327 | L14: =IF(AND(ISNUMBER(I14:J15)),ROUND(SQRT((I14-I15)^2+(J14-J15)^2),),"") -> 0 | N14: Оптим. | O14: 3916
A15: 13 | B15: Точка 13 | C15: 560 | D15: 7030 | G15: 40 | H15: Точка 40 | I15: 26 | J15: 3327 | L15: =IF(AND(ISNUMBER(I15:J16)),ROUND(SQRT((I15-I16)^2+(J15-J16)^2),),"") -> 162 | N15: Превыш. | O15: =O11/O14-1 -> 4.81639428
A16: 14 | B16: Точка 14 | C16: 562 | D16: 7085 | G16: 77 | H16: Точка 77 | I16: 3 | J16: 3487 | L16: =IF(AND(ISNUMBER(I16:J17)),ROUND(SQRT((I16-I17)^2+(J16-J17)^2),),"") -> 168
A17: 15 | B17: Точка 15 | C17: 583 | D17: 4881 | G17: 69 | H17: Точка 69 | I17: 31 | J17: 3653 | L17: =IF(AND(ISNUMBER(I17:J18)),ROUND(SQRT((I17-I18)^2+(J17-J18)^2),),"") -> 177
A18: 16 | B18: Точка 16 | C18: 417 | D18: 4323 | G18: 48 | H18: Точка 48 | I18: 166 | J18: 3768 | L18: =IF(AND(ISNUMBER(I18:J19)),ROUND(SQRT((I18-I19)^2+(J18-J19)^2),),"") -> 437
A19: 17 | B19: Точка 17 | C19: 311 | D19: 3951 | G19: 78 | H19: Точка 78 | I19: 11 | J19: 4177 | L19: =IF(AND(ISNUMBER(I19:J20)),ROUND(SQRT((I19-I20)^2+(J19-J20)^2),),"") -> 149
A20: 18 | B20: Точка 18 | C20: 358 | D20: 3905 | G20: 54 | H20: Точка 54 | I20: 150 | J20: 4230 | L20: =IF(AND(ISNUMBER(I20:J21)),ROUND(SQRT((I20-I21)^2+(J20-J21)^2),),"") -> 63
A21: 19 | B21: Точка 19 | C21: 865 | D21: 10532 | G21: 20 | H21: Точка 20 | I21: 200 | J21: 4191 | L21: =IF(AND(ISNUMBER(I21:J22)),ROUND(SQRT((I21-I22)^2+(J21-J22)^2),),"") -> 175
A22: 20 | B22: Точка 20 | C22: 200 | D22: 4191 | G22: 22 | H22: Точка 22 | I22: 374 | J22: 4173 | L22: =IF(AND(ISNUMBER(I22:J23)),ROUND(SQRT((I22-I23)^2+(J22-J23)^2),),"") -> 156
A23: 21 | B23: Точка 21 | C23: 166 | D23: 3316 | G23: 16 | H23: Точка 16 | I23: 417 | J23: 4323 | L23: =IF(AND(ISNUMBER(I23:J24)),ROUND(SQRT((I23-I24)^2+(J23-J24)^2),),"") -> 140
A24: 22 | B24: Точка 22 | C24: 374 | D24: 4173 | G24: 65 | H24: Точка 65 | I24: 332 | J24: 4434 | L24: =IF(AND(ISNUMBER(I24:J25)),ROUND(SQRT((I24-I25)^2+(J24-J25)^2),),"") -> 64
A25: 23 | B25: Точка 23 | C25: 416 | D25: 3983 | G25: 45 | H25: Точка 45 | I25: 300 | J25: 4490 | L25: =IF(AND(ISNUMBER(I25:J26)),ROUND(SQRT((I25-I26)^2+(J25-J26)^2),),"") -> 202 | Q25: m - метод оптимизации
A26: 24 | B26: Точка 24 | C26: 366 | D26: 3833 | G26: 51 | H26: Точка 51 | I26: 271 | J26: 4690 | L26: =IF(AND(ISNUMBER(I26:J27)),ROUND(SQRT((I26-I27)^2+(J26-J27)^2),),"") -> 117 | Q26: m = 0, построение маршрута "жадным" алгоритмом и использование 2-opt оптимизации
A27: 25 | B27: Точка 25 | C27: 771 | D27: 9179 | G27: 71 | H27: Точка 71 | I27: 225 | J27: 4798 | L27: =IF(AND(ISNUMBER(I27:J28)),ROUND(SQRT((I27-I28)^2+(J27-J28)^2),),"") -> 1016 | Q27: m = 1, дополнительно "выпрямление" маршрута близко лежащих точек на коротких участках
A28: 26 | B28: Точка 26 | C28: 29 | D28: 8084 | G28: 50 | H28: Точка 50 | I28: 297 | J28: 5811 | L28: =IF(AND(ISNUMBER(I28:J29)),ROUND(SQRT((I28-I29)^2+(J28-J29)^2),),"") -> 188 | Q28: m = 2, дополнительно производится "выпрямление" близко лежащих точек на длинных участках
A29: 27 | B29: Точка 27 | C29: 45 | D29: 8202 | G29: 35 | H29: Точка 35 | I29: 307 | J29: 5999 | L29: =IF(AND(ISNUMBER(I29:J30)),ROUND(SQRT((I29-I30)^2+(J29-J30)^2),),"") -> 575 | Q29: m = 3, 2-opt и 3-opt оптимизация
A30: 28 | B30: Точка 28 | C30: 352 | D30: 3762 | G30: 74 | H30: Точка 74 | I30: 363 | J30: 6571 | L30: =IF(AND(ISNUMBER(I30:J31)),ROUND(SQRT((I30-I31)^2+(J30-J31)^2),),"") -> 334 | Q30: m = 4, совокупность всех методов оптимизации
A31: 29 | B31: Точка 29 | C31: 430 | D31: 6341 | G31: 56 | H31: Точка 56 | I31: 336 | J31: 6904 | L31: =IF(AND(ISNUMBER(I31:J32)),ROUND(SQRT((I31-I32)^2+(J31-J32)^2),),"") -> 609
A32: 30 | B32: Точка 30 | C32: 549 | D32: 4308 | G32: 81 | H32: Точка 81 | I32: 71 | J32: 7452 | L32: =IF(AND(ISNUMBER(I32:J33)),ROUND(SQRT((I32-I33)^2+(J32-J33)^2),),"") -> 204 | Q32: q - изменение количества разных маршрутов, с выбором наилучшего решения
A33: 31 | B33: Точка 31 | C33: 539 | D33: 4310 | G33: 70 | H33: Точка 70 | I33: 54 | J33: 7655 | L33: =IF(AND(ISNUMBER(I33:J34)),ROUND(SQRT((I33-I34)^2+(J33-J34)^2),),"") -> 178 | Q33: при q = 0 - только один маршрут
A34: 32 | B34: Точка 32 | C34: 80 | D34: 3219 | G34: 44 | H34: Точка 44 | I34: 0 | J34: 7825 | L34: =IF(AND(ISNUMBER(I34:J35)),ROUND(SQRT((I34-I35)^2+(J34-J35)^2),),"") -> 261 | Q34: при q > 0 количество маршрутов равно n / q
A35: 33 | B35: Точка 33 | C35: 64 | D35: 3110 | G35: 26 | H35: Точка 26 | I35: 29 | J35: 8084 | L35: =IF(AND(ISNUMBER(I35:J36)),ROUND(SQRT((I35-I36)^2+(J35-J36)^2),),"") -> 81
A36: 34 | B36: Точка 34 | C36: 599 | D36: 4422 | G36: 61 | H36: Точка 61 | I36: 50 | J36: 8162 | L36: =IF(AND(ISNUMBER(I36:J37)),ROUND(SQRT((I36-I37)^2+(J36-J37)^2),),"") -> 40
A37: 35 | B37: Точка 35 | C37: 307 | D37: 5999 | G37: 27 | H37: Точка 27 | I37: 45 | J37: 8202 | L37: =IF(AND(ISNUMBER(I37:J38)),ROUND(SQRT((I37-I38)^2+(J37-J38)^2),),"") -> 63
A38: 36 | B38: Точка 36 | C38: 824 | D38: 10203 | G38: 7 | H38: Точка 7 | I38: 107 | J38: 8191 | L38: =IF(AND(ISNUMBER(I38:J39)),ROUND(SQRT((I38-I39)^2+(J38-J39)^2),),"") -> 0
A39: 37 | B39: Точка 37 | C39: 821 | D39: 9428 | G39: 62 | H39: Точка 62 | I39: 107 | J39: 8191 | L39: =IF(AND(ISNUMBER(I39:J40)),ROUND(SQRT((I39-I40)^2+(J39-J40)^2),),"") -> 1488
A40: 38 | B40: Точка 38 | C40: 439 | D40: 3733 | G40: 79 | H40: Точка 79 | I40: 771 | J40: 9523 | L40: =IF(AND(ISNUMBER(I40:J41)),ROUND(SQRT((I40-I41)^2+(J40-J41)^2),),"") -> 380
A41: 39 | B41: Точка 39 | C41: 430 | D41: 5858 | G41: 60 | H41: Точка 60 | I41: 803 | J41: 9902 | L41: =IF(AND(ISNUMBER(I41:J42)),ROUND(SQRT((I41-I42)^2+(J41-J42)^2),),"") -> 246
A42: 40 | B42: Точка 40 | C42: 26 | D42: 3327 | G42: 5 | H42: Точка 5 | I42: 802 | J42: 10148 | L42: =IF(AND(ISNUMBER(I42:J43)),ROUND(SQRT((I42-I43)^2+(J42-J43)^2),),"") -> 0
A43: 41 | B43: Точка 41 | C43: 466 | D43: 6890 | G43: 59 | H43: Точка 59 | I43: 802 | J43: 10148 | L43: =IF(AND(ISNUMBER(I43:J44)),ROUND(SQRT((I43-I44)^2+(J43-J44)^2),),"") -> 59
A44: 42 | B44: Точка 42 | C44: 874 | D44: 10020 | G44: 36 | H44: Точка 36 | I44: 824 | J44: 10203 | L44: =IF(AND(ISNUMBER(I44:J45)),ROUND(SQRT((I44-I45)^2+(J44-J45)^2),),"") -> 68
A45: 43 | B45: Точка 43 | C45: 745 | D45: 8789 | G45: 6 | H45: Точка 6 | I45: 825 | J45: 10271 | L45: =IF(AND(ISNUMBER(I45:J46)),ROUND(SQRT((I45-I46)^2+(J45-J46)^2),),"") -> 264
A46: 44 | B46: Точка 44 | C46: 0 | D46: 7825 | G46: 19 | H46: Точка 19 | I46: 865 | J46: 10532 | L46: =IF(AND(ISNUMBER(I46:J47)),ROUND(SQRT((I46-I47)^2+(J46-J47)^2),),"") -> 512
A47: 45 | B47: Точка 45 | C47: 300 | D47: 4490 | G47: 42 | H47: Точка 42 | I47: 874 | J47: 10020 | L47: =IF(AND(ISNUMBER(I47:J48)),ROUND(SQRT((I47-I48)^2+(J47-J48)^2),),"") -> 235
A48: 46 | B48: Точка 46 | C48: 358 | D48: 3905 | G48: 63 | H48: Точка 63 | I48: 847 | J48: 9787 | L48: =IF(AND(ISNUMBER(I48:J49)),ROUND(SQRT((I48-I49)^2+(J48-J49)^2),),"") -> 360
A49: 47 | B49: Точка 47 | C49: 460 | D49: 5378 | G49: 37 | H49: Точка 37 | I49: 821 | J49: 9428 | L49: =IF(AND(ISNUMBER(I49:J50)),ROUND(SQRT((I49-I50)^2+(J49-J50)^2),),"") -> 254
A50: 48 | B50: Точка 48 | C50: 166 | D50: 3768 | G50: 25 | H50: Точка 25 | I50: 771 | J50: 9179 | L50: =IF(AND(ISNUMBER(I50:J51)),ROUND(SQRT((I50-I51)^2+(J50-J51)^2),),"") -> 158
A51: 49 | B51: Точка 49 | C51: 397 | D51: 3918 | G51: 80 | H51: Точка 80 | I51: 722 | J51: 9029 | L51: =IF(AND(ISNUMBER(I51:J52)),ROUND(SQRT((I51-I52)^2+(J51-J52)^2),),"") -> 241
A52: 50 | B52: Точка 50 | C52: 297 | D52: 5811 | G52: 43 | H52: Точка 43 | I52: 745 | J52: 8789 | L52: =IF(AND(ISNUMBER(I52:J53)),ROUND(SQRT((I52-I53)^2+(J52-J53)^2),),"") -> 109
A53: 51 | B53: Точка 51 | C53: 271 | D53: 4690 | G53: 73 | H53: Точка 73 | I53: 807 | J53: 8699 | L53: =IF(AND(ISNUMBER(I53:J54)),ROUND(SQRT((I53-I54)^2+(J53-J54)^2),),"") -> 77
A54: 52 | B54: Точка 52 | C54: 810 | D54: 8393 | G54: 64 | H54: Точка 64 | I54: 752 | J54: 8645 | L54: =IF(AND(ISNUMBER(I54:J55)),ROUND(SQRT((I54-I55)^2+(J54-J55)^2),),"") -> 0
A55: 53 | B55: Точка 53 | C55: 786 | D55: 8163 | G55: 8 | H55: Точка 8 | I55: 752 | J55: 8645 | L55: =IF(AND(ISNUMBER(I55:J56)),ROUND(SQRT((I55-I56)^2+(J55-J56)^2),),"") -> 100
A56: 54 | B56: Точка 54 | C56: 150 | D56: 4230 | G56: 82 | H56: Точка 82 | I56: 788 | J56: 8552 | L56: =IF(AND(ISNUMBER(I56:J57)),ROUND(SQRT((I56-I57)^2+(J56-J57)^2),),"") -> 161
A57: 55 | B57: Точка 55 | C57: 80 | D57: 3219 | G57: 52 | H57: Точка 52 | I57: 810 | J57: 8393 | L57: =IF(AND(ISNUMBER(I57:J58)),ROUND(SQRT((I57-I58)^2+(J57-J58)^2),),"") -> 231
A58: 56 | B58: Точка 56 | C58: 336 | D58: 6904 | G58: 53 | H58: Точка 53 | I58: 786 | J58: 8163 | L58: =IF(AND(ISNUMBER(I58:J59)),ROUND(SQRT((I58-I59)^2+(J58-J59)^2),),"") -> 145
A59: 57 | B59: Точка 57 | C59: 599 | D59: 4422 | G59: 10 | H59: Точка 10 | I59: 852 | J59: 8034 | L59: =IF(AND(ISNUMBER(I59:J60)),ROUND(SQRT((I59-I60)^2+(J59-J60)^2),),"") -> 0
A60: 58 | B60: Точка 58 | C60: 479 | D60: 5409 | G60: 66 | H60: Точка 66 | I60: 852 | J60: 8034 | L60: =IF(AND(ISNUMBER(I60:J61)),ROUND(SQRT((I60-I61)^2+(J60-J61)^2),),"") -> 117
A61: 59 | B61: Точка 59 | C61: 802 | D61: 10148 | G61: 9 | H61: Точка 9 | I61: 852 | J61: 7917 | L61: =IF(AND(ISNUMBER(I61:J62)),ROUND(SQRT((I61-I62)^2+(J61-J62)^2),),"") -> 881
A62: 60 | B62: Точка 60 | C62: 803 | D62: 9902 | G62: 14 | H62: Точка 14 | I62: 562 | J62: 7085 | L62: =IF(AND(ISNUMBER(I62:J63)),ROUND(SQRT((I62-I63)^2+(J62-J63)^2),),"") -> 55
A63: 61 | B63: Точка 61 | C63: 50 | D63: 8162 | G63: 13 | H63: Точка 13 | I63: 560 | J63: 7030 | L63: =IF(AND(ISNUMBER(I63:J64)),ROUND(SQRT((I63-I64)^2+(J63-J64)^2),),"") -> 169
A64: 62 | B64: Точка 62 | C64: 107 | D64: 8191 | G64: 41 | H64: Точка 41 | I64: 466 | J64: 6890 | L64: =IF(AND(ISNUMBER(I64:J65)),ROUND(SQRT((I64-I65)^2+(J64-J65)^2),),"") -> 550
A65: 63 | B65: Точка 63 | C65: 847 | D65: 9787 | G65: 29 | H65: Точка 29 | I65: 430 | J65: 6341 | L65: =IF(AND(ISNUMBER(I65:J66)),ROUND(SQRT((I65-I66)^2+(J65-J66)^2),),"") -> 483
A66: 64 | B66: Точка 64 | C66: 752 | D66: 8645 | G66: 39 | H66: Точка 39 | I66: 430 | J66: 5858 | L66: =IF(AND(ISNUMBER(I66:J67)),ROUND(SQRT((I66-I67)^2+(J66-J67)^2),),"") -> 197
A67: 65 | B67: Точка 65 | C67: 332 | D67: 4434 | G67: 75 | H67: =IF($G67<>"",INDEX(B$3:B$227,$G67),NA()) -> Точка 75 | I67: =IF($G67<>"",INDEX(C$3:C$227,$G67),NA()) -> 449 | J67: =IF($G67<>"",INDEX(D$3:D$227,$G67),NA()) -> 5662 | L67: =IF(AND(ISNUMBER(I67:J68)),ROUND(SQRT((I67-I68)^2+(J67-J68)^2),),"") -> 255
A68: 66 | B68: Точка 66 | C68: 852 | D68: 8034 | G68: 58 | H68: Точка 58 | I68: 479 | J68: 5409 | L68: =IF(AND(ISNUMBER(I68:J69)),ROUND(SQRT((I68-I69)^2+(J68-J69)^2),),"") -> 36
A69: 67 | B69: Точка 67 | C69: 408 | D69: 3656 | G69: 47 | H69: Точка 47 | I69: 460 | J69: 5378 | L69: =IF(AND(ISNUMBER(I69:J70)),ROUND(SQRT((I69-I70)^2+(J69-J70)^2),),"") -> 267
A70: 68 | B70: Точка 68 | C70: 72 | D70: 0 | G70: 76 | H70: Точка 76 | I70: 482 | J70: 5112 | L70: =IF(AND(ISNUMBER(I70:J71)),ROUND(SQRT((I70-I71)^2+(J70-J71)^2),),"") -> 110
A71: 69 | B71: Точка 69 | C71: 31 | D71: 3653 | G71: 2 | H71: Точка 2 | I71: 550 | J71: 5025 | L71: =IF(AND(ISNUMBER(I71:J72)),ROUND(SQRT((I71-I72)^2+(J71-J72)^2),),"") -> 148
A72: 70 | B72: Точка 70 | C72: 54 | D72: 7655 | G72: 15 | H72: Точка 15 | I72: 583 | J72: 4881 | L72: =IF(AND(ISNUMBER(I72:J73)),ROUND(SQRT((I72-I73)^2+(J72-J73)^2),),"") -> 459
A73: 71 | B73: Точка 71 | C73: 225 | D73: 4798 | G73: 34 | H73: Точка 34 | I73: 599 | J73: 4422 | L73: =IF(AND(ISNUMBER(I73:J74)),ROUND(SQRT((I73-I74)^2+(J73-J74)^2),),"") -> 0
A74: 72 | B74: Точка 72 | C74: 598 | D74: 3954 | G74: 57 | H74: Точка 57 | I74: 599 | J74: 4422 | L74: =IF(AND(ISNUMBER(I74:J75)),ROUND(SQRT((I74-I75)^2+(J74-J75)^2),),"") -> 124
A75: 73 | B75: Точка 73 | C75: 807 | D75: 8699 | G75: 30 | H75: Точка 30 | I75: 549 | J75: 4308 | L75: =IF(AND(ISNUMBER(I75:J76)),ROUND(SQRT((I75-I76)^2+(J75-J76)^2),),"") -> 10
A76: 74 | B76: Точка 74 | C76: 363 | D76: 6571 | G76: 31 | H76: Точка 31 | I76: 539 | J76: 4310 | L76: =IF(AND(ISNUMBER(I76:J77)),ROUND(SQRT((I76-I77)^2+(J76-J77)^2),),"") -> 111
A77: 75 | B77: Точка 75 | C77: 449 | D77: 5662 | G77: 4 | H77: Точка 4 | I77: 540 | J77: 4199 | L77: =IF(AND(ISNUMBER(I77:J78)),ROUND(SQRT((I77-I78)^2+(J77-J78)^2),),"") -> 252
A78: 76 | B78: Точка 76 | C78: 482 | D78: 5112 | G78: 72 | H78: Точка 72 | I78: 598 | J78: 3954 | L78: =IF(AND(ISNUMBER(I78:J79)),ROUND(SQRT((I78-I79)^2+(J78-J79)^2),),"") -> 0
A79: 77 | B79: Точка 77 | C79: 3 | D79: 3487 | G79: 12 | H79: Точка 12 | I79: 598 | J79: 3954 | L79: =IF(AND(ISNUMBER(I79:J80)),ROUND(SQRT((I79-I80)^2+(J79-J80)^2),),"") -> 184
A80: 78 | B80: Точка 78 | C80: 11 | D80: 4177 | G80: 23 | H80: Точка 23 | I80: 416 | J80: 3983 | L80: =IF(AND(ISNUMBER(I80:J81)),ROUND(SQRT((I80-I81)^2+(J80-J81)^2),),"") -> 110
A81: 79 | B81: Точка 79 | C81: 771 | D81: 9523 | G81: 17 | H81: Точка 17 | I81: 311 | J81: 3951 | L81: =IF(AND(ISNUMBER(I81:J82)),ROUND(SQRT((I81-I82)^2+(J81-J82)^2),),"") -> 66
A82: 80 | B82: Точка 80 | C82: 722 | D82: 9029 | G82: 46 | H82: Точка 46 | I82: 358 | J82: 3905 | L82: =IF(AND(ISNUMBER(I82:J83)),ROUND(SQRT((I82-I83)^2+(J82-J83)^2),),"") -> 0
A83: 81 | B83: Точка 81 | C83: 71 | D83: 7452 | G83: 18 | H83: Точка 18 | I83: 358 | J83: 3905 | L83: =IF(AND(ISNUMBER(I83:J84)),ROUND(SQRT((I83-I84)^2+(J83-J84)^2),),"") -> 41
A84: 82 | B84: Точка 82 | C84: 788 | D84: 8552 | G84: 49 | H84: Точка 49 | I84: 397 | J84: 3918 | L84: =IF(AND(ISNUMBER(I84:J85)),ROUND(SQRT((I84-I85)^2+(J84-J85)^2),),"") -> 88
A85: 83 | G85: 1 | H85: Точка 1 | I85: 427 | J85: 3835 | L85: =IF(AND(ISNUMBER(I85:J86)),ROUND(SQRT((I85-I86)^2+(J85-J86)^2),),"") -> 
A86: 84 | L86: =IF(AND(ISNUMBER(I86:J87)),ROUND(SQRT((I86-I87)^2+(J86-J87)^2),),"") -> 
A87: 85 | L87: =IF(AND(ISNUMBER(I87:J88)),ROUND(SQRT((I87-I88)^2+(J87-J88)^2),),"") -> 
A88: 86 | L88: =IF(AND(ISNUMBER(I88:J89)),ROUND(SQRT((I88-I89)^2+(J88-J89)^2),),"") -> 
A89: 87 | L89: =IF(AND(ISNUMBER(I89:J90)),ROUND(SQRT((I89-I90)^2+(J89-J90)^2),),"") -> 
A90: 88 | L90: =IF(AND(ISNUMBER(I90:J91)),ROUND(SQRT((I90-I91)^2+(J90-J91)^2),),"") -> 
A91: 89 | L91: =IF(AND(ISNUMBER(I91:J92)),ROUND(SQRT((I91-I92)^2+(J91-J92)^2),),"") -> 
A92: 90 | L92: =IF(AND(ISNUMBER(I92:J93)),ROUND(SQRT((I92-I93)^2+(J92-J93)^2),),"") -> 
A93: 91 | L93: =IF(AND(ISNUMBER(I93:J94)),ROUND(SQRT((I93-I94)^2+(J93-J94)^2),),"") -> 
A94: 92 | L94: =IF(AND(ISNUMBER(I94:J95)),ROUND(SQRT((I94-I95)^2+(J94-J95)^2),),"") -> 
A95: 93 | L95: =IF(AND(ISNUMBER(I95:J96)),ROUND(SQRT((I95-I96)^2+(J95-J96)^2),),"") -> 
A96: 94 | L96: =IF(AND(ISNUMBER(I96:J97)),ROUND(SQRT((I96-I97)^2+(J96-J97)^2),),"") -> 
A97: 95 | L97: =IF(AND(ISNUMBER(I97:J98)),ROUND(SQRT((I97-I98)^2+(J97-J98)^2),),"") -> 
A98: 96 | L98: =IF(AND(ISNUMBER(I98:J99)),ROUND(SQRT((I98-I99)^2+(J98-J99)^2),),"") -> 
A99: 97 | L99: =IF(AND(ISNUMBER(I99:J100)),ROUND(SQRT((I99-I100)^2+(J99-J100)^2),),"") -> 
A100: 98 | L100: =IF(AND(ISNUMBER(I100:J101)),ROUND(SQRT((I100-I101)^2+(J100-J101)^2),),"") -> 
A101: 99 | L101: =IF(AND(ISNUMBER(I101:J102)),ROUND(SQRT((I101-I102)^2+(J101-J102)^2),),"") -> 
A102: 100 | L102: =IF(AND(ISNUMBER(I102:J103)),ROUND(SQRT((I102-I103)^2+(J102-J103)^2),),"") -> 
A103: 101 | L103: =IF(AND(ISNUMBER(I103:J104)),ROUND(SQRT((I103-I104)^2+(J103-J104)^2),),"") -> 
A104: 102 | L104: =IF(AND(ISNUMBER(I104:J105)),ROUND(SQRT((I104-I105)^2+(J104-J105)^2),),"") -> 
A105: 103 | L105: =IF(AND(ISNUMBER(I105:J106)),ROUND(SQRT((I105-I106)^2+(J105-J106)^2),),"") -> 
A106: 104 | L106: =IF(AND(ISNUMBER(I106:J107)),ROUND(SQRT((I106-I107)^2+(J106-J107)^2),),"") -> 
A107: 105 | L107: =IF(AND(ISNUMBER(I107:J108)),ROUND(SQRT((I107-I108)^2+(J107-J108)^2),),"") -> 
A108: 106 | L108: =IF(AND(ISNUMBER(I108:J109)),ROUND(SQRT((I108-I109)^2+(J108-J109)^2),),"") -> 
A109: 107 | L109: =IF(AND(ISNUMBER(I109:J110)),ROUND(SQRT((I109-I110)^2+(J109-J110)^2),),"") -> 
A110: 108 | L110: =IF(AND(ISNUMBER(I110:J111)),ROUND(SQRT((I110-I111)^2+(J110-J111)^2),),"") -> 
A111: 109 | L111: =IF(AND(ISNUMBER(I111:J112)),ROUND(SQRT((I111-I112)^2+(J111-J112)^2),),"") -> 
A112: 110 | L112: =IF(AND(ISNUMBER(I112:J113)),ROUND(SQRT((I112-I113)^2+(J112-J113)^2),),"") -> 
A113: 111 | L113: =IF(AND(ISNUMBER(I113:J114)),ROUND(SQRT((I113-I114)^2+(J113-J114)^2),),"") -> 
A114: 112 | L114: =IF(AND(ISNUMBER(I114:J115)),ROUND(SQRT((I114-I115)^2+(J114-J115)^2),),"") -> 
A115: 113 | L115: =IF(AND(ISNUMBER(I115:J116)),ROUND(SQRT((I115-I116)^2+(J115-J116)^2),),"") -> 
A116: 114 | L116: =IF(AND(ISNUMBER(I116:J117)),ROUND(SQRT((I116-I117)^2+(J116-J117)^2),),"") -> 
A117: 115 | L117: =IF(AND(ISNUMBER(I117:J118)),ROUND(SQRT((I117-I118)^2+(J117-J118)^2),),"") -> 
A118: 116 | L118: =IF(AND(ISNUMBER(I118:J119)),ROUND(SQRT((I118-I119)^2+(J118-J119)^2),),"") -> 
A119: 117 | L119: =IF(AND(ISNUMBER(I119:J120)),ROUND(SQRT((I119-I120)^2+(J119-J120)^2),),"") -> 
A120: 118 | L120: =IF(AND(ISNUMBER(I120:J121)),ROUND(SQRT((I120-I121)^2+(J120-J121)^2),),"") -> 
A121: 119 | L121: =IF(AND(ISNUMBER(I121:J122)),ROUND(SQRT((I121-I122)^2+(J121-J122)^2),),"") -> 
A122: 120 | L122: =IF(AND(ISNUMBER(I122:J123)),ROUND(SQRT((I122-I123)^2+(J122-J123)^2),),"") -> 
A123: 121 | L123: =IF(AND(ISNUMBER(I123:J124)),ROUND(SQRT((I123-I124)^2+(J123-J124)^2),),"") -> 
A124: 122 | L124: =IF(AND(ISNUMBER(I124:J125)),ROUND(SQRT((I124-I125)^2+(J124-J125)^2),),"") -> 
A125: 123 | L125: =IF(AND(ISNUMBER(I125:J126)),ROUND(SQRT((I125-I126)^2+(J125-J126)^2),),"") -> 
A126: 124 | L126: =IF(AND(ISNUMBER(I126:J127)),ROUND(SQRT((I126-I127)^2+(J126-J127)^2),),"") -> 
A127: 125 | L127: =IF(AND(ISNUMBER(I127:J128)),ROUND(SQRT((I127-I128)^2+(J127-J128)^2),),"") -> 
A128: 126 | L128: =IF(AND(ISNUMBER(I128:J129)),ROUND(SQRT((I128-I129)^2+(J128-J129)^2),),"") -> 
A129: 127 | L129: =IF(AND(ISNUMBER(I129:J130)),ROUND(SQRT((I129-I130)^2+(J129-J130)^2),),"") -> 
A130: 128 | L130: =IF(AND(ISNUMBER(I130:J131)),ROUND(SQRT((I130-I131)^2+(J130-J131)^2),),"") -> 
A131: 129 | H131: =IF($G131<>"",INDEX(B$3:B$227,$G131),NA()) ->  | I131: =IF($G131<>"",INDEX(C$3:C$227,$G131),NA()) ->  | J131: =IF($G131<>"",INDEX(D$3:D$227,$G131),NA()) ->  | L131: =IF(AND(ISNUMBER(I131:J132)),ROUND(SQRT((I131-I132)^2+(J131-J132)^2),),"") -> 
A132: 130 | L132: =IF(AND(ISNUMBER(I132:J133)),ROUND(SQRT((I132-I133)^2+(J132-J133)^2),),"") -> 
A133: 131 | L133: =IF(AND(ISNUMBER(I133:J134)),ROUND(SQRT((I133-I134)^2+(J133-J134)^2),),"") -> 
A134: 132 | L134: =IF(AND(ISNUMBER(I134:J135)),ROUND(SQRT((I134-I135)^2+(J134-J135)^2),),"") -> 
A135: 133 | L135: =IF(AND(ISNUMBER(I135:J136)),ROUND(SQRT((I135-I136)^2+(J135-J136)^2),),"") -> 
A136: 134 | L136: =IF(AND(ISNUMBER(I136:J137)),ROUND(SQRT((I136-I137)^2+(J136-J137)^2),),"") -> 
A137: 135 | L137: =IF(AND(ISNUMBER(I137:J138)),ROUND(SQRT((I137-I138)^2+(J137-J138)^2),),"") -> 
A138: 136 | L138: =IF(AND(ISNUMBER(I138:J139)),ROUND(SQRT((I138-I139)^2+(J138-J139)^2),),"") -> 
A139: 137 | L139: =IF(AND(ISNUMBER(I139:J140)),ROUND(SQRT((I139-I140)^2+(J139-J140)^2),),"") -> 
A140: 138 | L140: =IF(AND(ISNUMBER(I140:J141)),ROUND(SQRT((I140-I141)^2+(J140-J141)^2),),"") -> 
A141: 139 | L141: =IF(AND(ISNUMBER(I141:J142)),ROUND(SQRT((I141-I142)^2+(J141-J142)^2),),"") -> 
A142: 140 | L142: =IF(AND(ISNUMBER(I142:J143)),ROUND(SQRT((I142-I143)^2+(J142-J143)^2),),"") -> 
A143: 141 | L143: =IF(AND(ISNUMBER(I143:J144)),ROUND(SQRT((I143-I144)^2+(J143-J144)^2),),"") -> 
A144: 142 | L144: =IF(AND(ISNUMBER(I144:J145)),ROUND(SQRT((I144-I145)^2+(J144-J145)^2),),"") -> 
A145: 143 | L145: =IF(AND(ISNUMBER(I145:J146)),ROUND(SQRT((I145-I146)^2+(J145-J146)^2),),"") -> 
A146: 144 | L146: =IF(AND(ISNUMBER(I146:J147)),ROUND(SQRT((I146-I147)^2+(J146-J147)^2),),"") -> 
A147: 145 | L147: =IF(AND(ISNUMBER(I147:J148)),ROUND(SQRT((I147-I148)^2+(J147-J148)^2),),"") -> 
A148: 146 | L148: =IF(AND(ISNUMBER(I148:J149)),ROUND(SQRT((I148-I149)^2+(J148-J149)^2),),"") -> 
A149: 147 | L149: =IF(AND(ISNUMBER(I149:J150)),ROUND(SQRT((I149-I150)^2+(J149-J150)^2),),"") -> 
A150: 148 | L150: =IF(AND(ISNUMBER(I150:J151)),ROUND(SQRT((I150-I151)^2+(J150-J151)^2),),"") -> 
A151: 149 | L151: =IF(AND(ISNUMBER(I151:J152)),ROUND(SQRT((I151-I152)^2+(J151-J152)^2),),"") -> 
A152: 150 | L152: =IF(AND(ISNUMBER(I152:J153)),ROUND(SQRT((I152-I153)^2+(J152-J153)^2),),"") -> 
A153: 151 | L153: =IF(AND(ISNUMBER(I153:J154)),ROUND(SQRT((I153-I154)^2+(J153-J154)^2),),"") -> 
A154: 152 | L154: =IF(AND(ISNUMBER(I154:J155)),ROUND(SQRT((I154-I155)^2+(J154-J155)^2),),"") -> 
A155: 153 | L155: =IF(AND(ISNUMBER(I155:J156)),ROUND(SQRT((I155-I156)^2+(J155-J156)^2),),"") -> 
A156: 154 | L156: =IF(AND(ISNUMBER(I156:J157)),ROUND(SQRT((I156-I157)^2+(J156-J157)^2),),"") -> 
A157: 155 | L157: =IF(AND(ISNUMBER(I157:J158)),ROUND(SQRT((I157-I158)^2+(J157-J158)^2),),"") -> 
A158: 156 | L158: =IF(AND(ISNUMBER(I158:J159)),ROUND(SQRT((I158-I159)^2+(J158-J159)^2),),"") -> 
A159: 157 | L159: =IF(AND(ISNUMBER(I159:J160)),ROUND(SQRT((I159-I160)^2+(J159-J160)^2),),"") -> 
A160: 158 | L160: =IF(AND(ISNUMBER(I160:J161)),ROUND(SQRT((I160-I161)^2+(J160-J161)^2),),"") -> 
A161: 159 | L161: =IF(AND(ISNUMBER(I161:J162)),ROUND(SQRT((I161-I162)^2+(J161-J162)^2),),"") -> 
A162: 160 | L162: =IF(AND(ISNUMBER(I162:J163)),ROUND(SQRT((I162-I163)^2+(J162-J163)^2),),"") -> 
A163: 161 | L163: =IF(AND(ISNUMBER(I163:J164)),ROUND(SQRT((I163-I164)^2+(J163-J164)^2),),"") -> 
A164: 162 | L164: =IF(AND(ISNUMBER(I164:J165)),ROUND(SQRT((I164-I165)^2+(J164-J165)^2),),"") -> 
A165: 163 | L165: =IF(AND(ISNUMBER(I165:J166)),ROUND(SQRT((I165-I166)^2+(J165-J166)^2),),"") -> 
A166: 164 | L166: =IF(AND(ISNUMBER(I166:J167)),ROUND(SQRT((I166-I167)^2+(J166-J167)^2),),"") -> 
A167: 165 | L167: =IF(AND(ISNUMBER(I167:J168)),ROUND(SQRT((I167-I168)^2+(J167-J168)^2),),"") -> 
A168: 166 | L168: =IF(AND(ISNUMBER(I168:J169)),ROUND(SQRT((I168-I169)^2+(J168-J169)^2),),"") -> 
A169: 167 | L169: =IF(AND(ISNUMBER(I169:J170)),ROUND(SQRT((I169-I170)^2+(J169-J170)^2),),"") -> 
A170: 168 | L170: =IF(AND(ISNUMBER(I170:J171)),ROUND(SQRT((I170-I171)^2+(J170-J171)^2),),"") -> 
A171: 169 | L171: =IF(AND(ISNUMBER(I171:J172)),ROUND(SQRT((I171-I172)^2+(J171-J172)^2),),"") -> 
A172: 170 | L172: =IF(AND(ISNUMBER(I172:J173)),ROUND(SQRT((I172-I173)^2+(J172-J173)^2),),"") -> 
A173: 171 | L173: =IF(AND(ISNUMBER(I173:J174)),ROUND(SQRT((I173-I174)^2+(J173-J174)^2),),"") -> 
A174: 172 | L174: =IF(AND(ISNUMBER(I174:J175)),ROUND(SQRT((I174-I175)^2+(J174-J175)^2),),"") -> 
A175: 173 | L175: =IF(AND(ISNUMBER(I175:J176)),ROUND(SQRT((I175-I176)^2+(J175-J176)^2),),"") -> 
A176: 174 | L176: =IF(AND(ISNUMBER(I176:J177)),ROUND(SQRT((I176-I177)^2+(J176-J177)^2),),"") -> 
A177: 175 | L177: =IF(AND(ISNUMBER(I177:J178)),ROUND(SQRT((I177-I178)^2+(J177-J178)^2),),"") -> 
A178: 176 | L178: =IF(AND(ISNUMBER(I178:J179)),ROUND(SQRT((I178-I179)^2+(J178-J179)^2),),"") -> 
A179: 177 | L179: =IF(AND(ISNUMBER(I179:J180)),ROUND(SQRT((I179-I180)^2+(J179-J180)^2),),"") -> 
A180: 178 | L180: =IF(AND(ISNUMBER(I180:J181)),ROUND(SQRT((I180-I181)^2+(J180-J181)^2),),"") -> 
A181: 179 | L181: =IF(AND(ISNUMBER(I181:J182)),ROUND(SQRT((I181-I182)^2+(J181-J182)^2),),"") -> 
A182: 180 | L182: =IF(AND(ISNUMBER(I182:J183)),ROUND(SQRT((I182-I183)^2+(J182-J183)^2),),"") -> 
A183: 181 | L183: =IF(AND(ISNUMBER(I183:J184)),ROUND(SQRT((I183-I184)^2+(J183-J184)^2),),"") -> 
A184: 182 | L184: =IF(AND(ISNUMBER(I184:J185)),ROUND(SQRT((I184-I185)^2+(J184-J185)^2),),"") -> 
A185: 183 | L185: =IF(AND(ISNUMBER(I185:J186)),ROUND(SQRT((I185-I186)^2+(J185-J186)^2),),"") -> 
A186: 184 | L186: =IF(AND(ISNUMBER(I186:J187)),ROUND(SQRT((I186-I187)^2+(J186-J187)^2),),"") -> 
A187: 185 | L187: =IF(AND(ISNUMBER(I187:J188)),ROUND(SQRT((I187-I188)^2+(J187-J188)^2),),"") -> 
A188: 186 | L188: =IF(AND(ISNUMBER(I188:J189)),ROUND(SQRT((I188-I189)^2+(J188-J189)^2),),"") -> 
A189: 187 | L189: =IF(AND(ISNUMBER(I189:J190)),ROUND(SQRT((I189-I190)^2+(J189-J190)^2),),"") -> 
A190: 188 | L190: =IF(AND(ISNUMBER(I190:J191)),ROUND(SQRT((I190-I191)^2+(J190-J191)^2),),"") -> 
A191: 189 | L191: =IF(AND(ISNUMBER(I191:J192)),ROUND(SQRT((I191-I192)^2+(J191-J192)^2),),"") -> 
A192: 190 | L192: =IF(AND(ISNUMBER(I192:J193)),ROUND(SQRT((I192-I193)^2+(J192-J193)^2),),"") -> 
A193: 191 | L193: =IF(AND(ISNUMBER(I193:J194)),ROUND(SQRT((I193-I194)^2+(J193-J194)^2),),"") -> 
A194: 192 | L194: =IF(AND(ISNUMBER(I194:J195)),ROUND(SQRT((I194-I195)^2+(J194-J195)^2),),"") -> 
A195: 193 | H195: =IF($G195<>"",INDEX(B$3:B$227,$G195),NA()) ->  | I195: =IF($G195<>"",INDEX(C$3:C$227,$G195),NA()) ->  | J195: =IF($G195<>"",INDEX(D$3:D$227,$G195),NA()) ->  | L195: =IF(AND(ISNUMBER(I195:J196)),ROUND(SQRT((I195-I196)^2+(J195-J196)^2),),"") -> 
A196: 194 | L196: =IF(AND(ISNUMBER(I196:J197)),ROUND(SQRT((I196-I197)^2+(J196-J197)^2),),"") -> 
A197: 195 | L197: =IF(AND(ISNUMBER(I197:J198)),ROUND(SQRT((I197-I198)^2+(J197-J198)^2),),"") -> 
A198: 196 | L198: =IF(AND(ISNUMBER(I198:J199)),ROUND(SQRT((I198-I199)^2+(J198-J199)^2),),"") -> 
A199: 197 | L199: =IF(AND(ISNUMBER(I199:J200)),ROUND(SQRT((I199-I200)^2+(J199-J200)^2),),"") -> 
A200: 198 | L200: =IF(AND(ISNUMBER(I200:J201)),ROUND(SQRT((I200-I201)^2+(J200-J201)^2),),"") -> 
... 28 more rows

Sheet Лист1
A1: адрес | B1: долгота | C1: широта | F1: 800 | G1: 200 | H1: =MIN(F2:F200) -> -427 | I1: =MIN(G2:G200) -> -3835
B2: 56.13818 | C2: 40.3581549 | D2: =SUBSTITUTE(B2,".",",")*10000000 -> 561381800 | E2: =SUBSTITUTE(C2,".",",")*10000000 -> 403581549 | F2: 0 | G2: 0 | H2: =F2-H$1 -> 427 | I2: =G2-I$1 -> 3835
B3: 56.148099 | C3: 40.381955 | D3: =SUBSTITUTE(B3,".",",")*10000000 -> 561480990 | E3: 403819550 | F3: =INT((D3-D$2+F$2)/F$1) -> 123 | G3: =INT((E3-E$2+G$2)/G$1) -> 1190 | H3: =F3-H$1 -> 550 | I3: 5025
B4: 56.127811 | C4: 40.353952 | D4: 561278110 | E4: 403539520 | F4: =INT((D4-D$2+F$2)/F$1) -> -130 | G4: -211 | H4: 297 | I4: 3624
B5: 56.147224 | C5: 40.365452 | D5: 561472240 | E5: 403654520 | F5: 113 | G5: 364 | H5: 540 | I5: 4199
B6: 56.1682538 | C6: 40.484426 | D6: 561682538 | E6: 404844260 | F6: 375 | G6: 6313 | H6: 802 | I6: 10148
B7: 56.170081 | C7: 40.486888 | D7: 561700810 | E7: 404868880 | F7: 398 | G7: 6436 | H7: 825 | I7: 10271
B8: 56.11261 | C8: 40.445277 | D8: 561126100 | E8: 404452770 | F8: -320 | G8: 4356 | H8: 107 | I8: 8191
B9: 56.164242 | C9: 40.4543729 | D9: 561642420 | E9: 404543729 | F9: 325 | G9: 4810 | H9: 752 | I9: 8645
B10: 56.172186 | C10: 40.43981 | D10: =SUBSTITUTE(B10,".",",")*10000000 -> 561721860 | E10: =SUBSTITUTE(C10,".",",")*10000000 -> 404398100 | F10: =INT((D10-D$2+F$2)/F$1) -> 425 | G10: =INT((E10-E$2+G$2)/G$1) -> 4082 | H10: =F10-H$1 -> 852 | I10: =G10-I$1 -> 7917
B11: 56.172252 | C11: 40.442146 | D11: 561722520 | E11: 404421460 | F11: 425 | G11: 4199 | H11: 852 | I11: 8034
B12: 56.106157 | C12: 40.348014 | D12: 561061570 | E12: 403480140 | F12: -401 | G12: -508 | H12: 26 | I12: 3327
B13: 56.15187 | C13: 40.360544 | D13: 561518700 | E13: 403605440 | F13: 171 | G13: 119 | H13: 598 | I13: 3954
B14: 56.148879 | C14: 40.422071 | D14: 561488790 | E14: 404220710 | F14: 133 | G14: 3195 | H14: 560 | I14: 7030
B15: 56.14898 | C15: 40.423172 | D15: 561489800 | E15: 404231720 | F15: 135 | G15: 3250 | H15: 562 | I15: 7085
B16: 56.150734 | C16: 40.379083 | D16: 561507340 | E16: 403790830 | F16: 156 | G16: 1046 | H16: 583 | I16: 4881
B17: 56.137398 | C17: 40.36792 | D17: 561373980 | E17: 403679200 | F17: -10 | G17: 488 | H17: 417 | I17: 4323
B18: 56.128906 | C18: 40.360483 | D18: 561289060 | E18: 403604830 | F18: -116 | G18: 116 | H18: 311 | I18: 3951
B19: 56.132665 | C19: 40.359569 | D19: 561326650 | E19: 403595690 | F19: -69 | G19: 70 | H19: 358 | I19: 3905
B20: 56.1732425 | C20: 40.4921148 | D20: 561732425 | E20: 404921148 | F20: 438 | G20: 6697 | H20: 865 | I20: 10532
B21: 56.120099 | C21: 40.365291 | D21: 561200990 | E21: 403652910 | F21: -227 | G21: 356 | H21: 200 | I21: 4191
B22: 56.117359 | C22: 40.347793 | D22: 561173590 | E22: 403477930 | F22: -261 | G22: -519 | H22: 166 | I22: 3316
B23: 56.1339586 | C23: 40.364918 | D23: 561339586 | E23: 403649180 | F23: -53 | G23: 338 | H23: 374 | I23: 4173
B24: 56.137325 | C24: 40.361116 | D24: 561373250 | E24: 403611160 | F24: -11 | G24: 148 | H24: 416 | I24: 3983
B25: 56.133374 | C25: 40.358129 | D25: 561333740 | E25: 403581290 | F25: -61 | G25: -2 | H25: 366 | I25: 3833
B26: 56.16575 | C26: 40.465054 | D26: 561657500 | E26: 404650540 | F26: 344 | G26: 5344 | H26: 771 | I26: 9179
B27: 56.106398 | C27: 40.443138 | D27: 561063980 | E27: 404431380 | F27: -398 | G27: 4249 | H27: 29 | I27: 8084
B28: 56.107647 | C28: 40.445505 | D28: 561076470 | E28: 404455050 | F28: -382 | G28: 4367 | H28: 45 | I28: 8202
B29: 56.132213 | C29: 40.356713 | D29: 561322130 | E29: 403567130 | F29: -75 | G29: -73 | H29: 352 | I29: 3762
B30: 56.138432 | C30: 40.408276 | D30: 561384320 | E30: 404082760 | F30: 3 | G30: 2506 | H30: 430 | I30: 6341
B31: 56.148002 | C31: 40.367619 | D31: 561480020 | E31: 403676190 | F31: 122 | G31: 473 | H31: 549 | I31: 4308
B32: 56.14718 | C32: 40.367665 | D32: 561471800 | E32: 403676650 | F32: 112 | G32: 475 | H32: 539 | I32: 4310
B33: 56.110443 | C33: 40.345842 | D33: 561104430 | E33: 403458420 | F33: -347 | G33: -616 | H33: 80 | I33: 3219
B34: 56.1091658 | C34: 40.3436697 | D34: 561091658 | E34: 403436697 | F34: -363 | G34: -725 | H34: 64 | I34: 3110
B35: 56.15198 | C35: 40.369898 | D35: 561519800 | E35: 403698980 | F35: 172 | G35: 587 | H35: 599 | I35: 4422
B36: 56.128582 | C36: 40.401442 | D36: 561285820 | E36: 404014420 | F36: -120 | G36: 2164 | H36: 307 | I36: 5999
B37: 56.169956 | C37: 40.485532 | D37: 561699560 | E37: 404855320 | F37: 397 | G37: 6368 | H37: 824 | I37: 10203
B38: 56.1697072 | C38: 40.4700156 | D38: 561697072 | E38: 404700156 | F38: 394 | G38: 5593 | H38: 821 | I38: 9428
B39: 56.139211 | C39: 40.356118 | D39: 561392110 | E39: 403561180 | F39: 12 | G39: -102 | H39: 439 | I39: 3733
B40: 56.138461 | C40: 40.398628 | D40: 561384610 | E40: 403986280 | F40: 3 | G40: 2023 | H40: 430 | I40: 5858
B41: 56.106157 | C41: 40.348014 | D41: 561061570 | E41: 403480140 | F41: -401 | G41: -508 | H41: 26 | I41: 3327
B42: 56.1413 | C42: 40.41927 | D42: 561413000 | E42: 404192700 | F42: 39 | G42: 3055 | H42: 466 | I42: 6890
B43: 56.173976 | C43: 40.481855 | D43: 561739760 | E43: 404818550 | F43: 447 | G43: 6185 | H43: 874 | I43: 10020
B44: 56.163627 | C44: 40.457242 | D44: 561636270 | E44: 404572420 | F44: 318 | G44: 4954 | H44: 745 | I44: 8789
B45: 56.104031 | C45: 40.437965 | D45: 561040310 | E45: 404379650 | F45: -427 | G45: 3990 | H45: 0 | I45: 7825
B46: 56.128041 | C46: 40.371257 | D46: 561280410 | E46: 403712570 | F46: -127 | G46: 655 | H46: 300 | I46: 4490
B47: 56.132665 | C47: 40.359569 | D47: 561326650 | E47: 403595690 | F47: -69 | G47: 70 | H47: 358 | I47: 3905
B48: 56.140834 | C48: 40.389018 | D48: 561408340 | E48: 403890180 | F48: 33 | G48: 1543 | H48: 460 | I48: 5378
B49: 56.117366 | C49: 40.356827 | D49: 561173660 | E49: 403568270 | F49: -261 | G49: -67 | H49: 166 | I49: 3768
B50: 56.135851 | C50: 40.359824 | D50: 561358510 | E50: 403598240 | F50: -30 | G50: 83 | H50: 397 | I50: 3918
B51: 56.127818 | C51: 40.3976929 | D51: 561278180 | E51: 403976929 | F51: -130 | G51: 1976 | H51: 297 | I51: 5811
B52: 56.1257222 | C52: 40.3752681 | D52: 561257222 | E52: 403752681 | F52: -156 | G52: 855 | H52: 271 | I52: 4690
B53: 56.168885 | C53: 40.449315 | D53: 561688850 | E53: 404493150 | F53: 383 | G53: 4558 | H53: 810 | I53: 8393
B54: 56.166978 | C54: 40.444723 | D54: 561669780 | E54: 404447230 | F54: 359 | G54: 4328 | H54: 786 | I54: 8163
B55: 56.116039 | C55: 40.366058 | D55: 561160390 | E55: 403660580 | F55: -277 | G55: 395 | H55: 150 | I55: 4230
B56: 56.110443 | C56: 40.345842 | D56: 561104430 | E56: 403458420 | F56: -347 | G56: -616 | H56: 80 | I56: 3219
B57: 56.1309142 | C57: 40.4195427 | D57: 561309142 | E57: 404195427 | F57: -91 | G57: 3069 | H57: 336 | I57: 6904
B58: 56.15198 | C58: 40.369898 | D58: 561519800 | E58: 403698980 | F58: 172 | G58: 587 | H58: 599 | I58: 4422
B59: 56.142379 | C59: 40.389636 | D59: 561423790 | E59: 403896360 | F59: 52 | G59: 1574 | H59: 479 | I59: 5409
B60: 56.1682538 | C60: 40.484426 | D60: 561682538 | E60: 404844260 | F60: 375 | G60: 6313 | H60: 802 | I60: 10148
B61: 56.168298 | C61: 40.4795 | D61: 561682980 | E61: 404795000 | F61: 376 | G61: 6067 | H61: 803 | I61: 9902
B62: 56.108031 | C62: 40.44471 | D62: 561080310 | E62: 404447100 | F62: -377 | G62: 4327 | H62: 50 | I62: 8162
B63: 56.11261 | C63: 40.445277 | D63: 561126100 | E63: 404452770 | F63: -320 | G63: 4356 | H63: 107 | I63: 8191
B64: 56.171802 | C64: 40.477204 | D64: 561718020 | E64: 404772040 | F64: 420 | G64: 5952 | H64: 847 | I64: 9787
B65: 56.164242 | C65: 40.4543729 | D65: 561642420 | E65: 404543729 | F65: 325 | G65: 4810 | H65: 752 | I65: 8645
B66: 56.13061 | C66: 40.370149 | D66: 561306100 | E66: 403701490 | F66: -95 | G66: 599 | H66: 332 | I66: 4434
B67: 56.172252 | C67: 40.442146 | D67: 561722520 | E67: 404421460 | F67: 425 | G67: 4199 | H67: 852 | I67: 8034
B68: 56.136732 | C68: 40.354594 | D68: 561367320 | E68: 403545940 | F68: -19 | G68: -179 | H68: 408 | I68: 3656
B69: 56.109808 | C69: 40.281458 | D69: 561098080 | E69: 402814580 | F69: -355 | G69: -3835 | H69: 72 | I69: 0
B70: 56.106516 | C70: 40.354526 | D70: 561065160 | E70: 403545260 | F70: -396 | G70: -182 | H70: 31 | I70: 3653
B71: 56.108368 | C71: 40.43456 | D71: 561083680 | E71: 404345600 | F71: -373 | G71: 3820 | H71: 54 | I71: 7655
B72: 56.12206 | C72: 40.377425 | D72: 561220600 | E72: 403774250 | F72: -202 | G72: 963 | H72: 225 | I72: 4798
B73: 56.15187 | C73: 40.360544 | D73: 561518700 | E73: 403605440 | F73: 171 | G73: 119 | H73: 598 | I73: 3954
B74: 56.16865 | C74: 40.455454 | D74: =SUBSTITUTE(B74,".",",")*10000000 -> 561686500 | E74: =SUBSTITUTE(C74,".",",")*10000000 -> 404554540 | F74: =INT((D74-D$2+F$2)/F$1) -> 380 | G74: =INT((E74-E$2+G$2)/G$1) -> 4864 | H74: =F74-H$1 -> 807 | I74: =G74-I$1 -> 8699
B75: 56.133126 | C75: 40.41288 | D75: 561331260 | E75: 404128800 | F75: -64 | G75: 2736 | H75: 363 | I75: 6571
B76: 56.139988 | C76: 40.394696 | D76: 561399880 | E76: 403946960 | F76: 22 | G76: 1827 | H76: 449 | I76: 5662
B77: 56.142652 | C77: 40.38371 | D77: 561426520 | E77: 403837100 | F77: 55 | G77: 1277 | H77: 482 | I77: 5112
B78: 56.104339 | C78: 40.351205 | D78: 561043390 | E78: 403512050 | F78: -424 | G78: -348 | H78: 3 | I78: 3487
B79: 56.1049705 | C79: 40.3649966 | D79: 561049705 | E79: 403649966 | F79: -416 | G79: 342 | H79: 11 | I79: 4177
B80: 56.165708 | C80: 40.471928 | D80: 561657080 | E80: 404719280 | F80: 344 | G80: 5688 | H80: 771 | I80: 9523
B81: 56.161844 | C81: 40.462046 | D81: 561618440 | E81: 404620460 | F81: 295 | G81: 5194 | H81: 722 | I81: 9029
B82: 56.109767 | C82: 40.430513 | D82: 561097670 | E82: 404305130 | F82: -356 | G82: 3617 | H82: 71 | I82: 7452
B83: 56.167138 | C83: 40.452512 | D83: 561671380 | E83: 404525120 | F83: 361 | G83: 4717 | H83: 788 | I83: 8552
